bitfinex/quotes_SOLUSD_20251216
["timestamp","ask_amount","ask_price","bid_price","bid_amount"]
[1765898504744,8.86682383,128.17,128.14,7.80356714]
[1765898504946,8.14682383,128.17,128.14,7.80396441]
[1765898505315,102.5,128.21,128.15,0.71]
[1765898505644,8.14682383,128.19,128.15,0.71]
[1765898505843,8.54,128.2,128.15,0.71]
[1765898505844,8.14682383,128.2,128.15,0.71]
[1765898506047,16.68682383,128.21,128.15,0.71]
[1765898506416,8.14682383,128.2,128.16,0.71]
[1765898506828,16.68682383,128.21,128.16,0.71]
[1765898507029,16.68682383,128.21,128.17,28.01748224]
[1765898507228,16.68682383,128.21,128.18,0.71]
[1765898507437,16.68682383,128.21,128.17,28.01748224]
[1765898507643,16.68682383,128.21,128.17,27.30748224]
[1765898507943,8.14682383,128.23,128.18,0.71]
[1765898508439,28.29950361,128.28,128.18,0.71]
[1765898508440,8.54,128.28,128.22,0.71]
[1765898508657,8.14682383,128.27,128.22,0.71]
[1765898508820,16.68682383,128.28,128.22,0.71]
[1765898509142,25.20235168,128.28,128.24,0.71]
[1765898509350,8.14682383,128.27,128.23,28.00470482]
[1765898509528,0.72,128.31,128.24,0.71]
[1765898509720,0.72,128.34,128.28,0.71]
[1765898509915,8.14682383,128.33,128.28,0.71]
[1765898510119,8.14682383,128.31,128.27,22.2970912]
[1765898510343,8.14682383,128.29,128.25,13.7570912]
[1765898510538,8.86682383,128.29,128.25,13.7570912]
[1765898510735,8.86682383,128.27,128.23,20.84557829]
[1765898510934,16.6631295,128.27,128.23,20.84557829]
[1765898511140,8.14682383,128.27,128.23,21.55557829]
[1765898511357,8.14682383,128.28,128.24,0.71]
[1765898511968,8.14682383,128.27,128.23,21.55557829]
[1765898512253,8.86682383,128.27,128.23,21.55557829]
[1765898512440,8.14682383,128.27,128.23,20.84557829]
[1765898512823,8.14682383,128.27,128.24,0.71]
[1765898513133,8.14682383,128.28,128.24,8.50746075]
[1765898513328,25.20192387,128.29,128.24,7.79746075]
[1765898513532,8.14682383,128.28,128.24,8.50746075]
[1765898513735,8.86682383,128.28,128.24,8.50746075]
[1765898513923,8.14682383,128.28,128.24,8.50746075]
[1765898514652,8.86682383,128.27,128.23,13.0470912]
[1765898514850,8.86682383,128.27,128.23,13.7570912]
[1765898515852,15.94301946,128.27,128.23,21.55545338]
[1765898516371,16.68682383,128.29,128.24,0.71]
[1765898516525,16.68682383,128.29,128.23,20.84545338]
[1765898516526,0.72,128.26,128.23,20.84545338]
[1765898516846,8.14682383,128.27,128.23,20.84545338]
[1765898517041,8.86682383,128.27,128.23,20.84545338]
[1765898517250,35.82198202,128.29,128.23,13.0470912]
[1765898517251,8.86682383,128.26,128.23,13.0470912]
[1765898517558,8.86682383,128.25,128.21,21.55652996]
[1765898517721,15.94531092,128.23,128.19,0.71]
[1765898517922,15.94531092,128.23,128.2,13.0470912]
[1765898518340,8.14755266,128.23,128.2,13.7570912]
[1765898518557,16.66563583,128.24,128.2,13.7570912]
[1765898518722,16.66563583,128.24,128.2,0.71]
[1765898518925,8.86755266,128.23,128.19,7.80070809]
[1765898519235,8.14755266,128.2,128.14,0.71]
[1765898519471,8.86755266,128.19,128.15,8.51298688]
[1765898519758,16.67019039,128.17,128.13,7.80416441]
[1765898520063,8.14755266,128.16,128.12,8.71503158]
[1765898520357,7.80031201,128.2,128.13,0.71]
[1765898520560,8.14755266,128.19,128.13,0.71]
[1765898520735,8.14755266,128.19,128.12,48.71273934]
[1765898520736,8.14755266,128.16,128.12,21.76223008]
[1765898520939,8.14755266,128.15,128.12,8.00507213]
[1765898521141,8.14755266,128.17,128.13,0.71]
[1765898521322,35.84109204,128.2,128.12,8.00507213]
[1765898521528,8.14755266,128.18,128.12,8.71507213]
[1765898521748,16.66969044,128.17,128.12,28.22802873]
[1765898521953,16.66969044,128.17,128.12,0.2]
[1765898521954,8.14755266,128.13,128.12,0.2]
[1765898522633,0.72,128.14,128.12,0.2]
[1765898522955,8.14755266,128.13,128.12,0.2]
[1765898523152,8.86755266,128.13,128.12,0.2]
[1765898523762,16.67212614,128.13,128.12,0.2]
[1765898524056,15.9517795,128.14,128.12,0.2]
[1765898524231,8.14755266,128.13,128.12,0.2]
[1765898524433,8.54,128.14,128.12,0.2]
[1765898524744,8.14755266,128.15,128.12,8.00500432]
[1765898524951,41.36177586,128.18,128.12,8.00500432]
[1765898524952,8.54,128.18,128.13,8.14755266]
[1765898525151,8.54,128.18,128.14,0.69]
[1765898525349,8.54,128.18,128.14,8.14755266]
[1765898525653,16.68755266,128.21,128.15,0.69]
[1765898525853,0.69,128.28,128.19,0.69]
[1765898526026,8.14755266,128.25,128.19,0.69]
[1765898526226,8.14755266,128.24,128.19,0.69]
[1765898526443,8.83755266,128.26,128.2,8.83755266]
[1765898526652,8.14755266,128.25,128.2,0.69]
[1765898526969,0.69,128.26,128.2,8.83755266]
[1765898526970,8.83755266,128.26,128.2,8.83755266]
[1765898527335,8.54,128.27,128.19,8.14755266]
[1765898527336,8.83755266,128.25,128.19,8.14755266]
[1765898527545,8.14755266,128.23,128.18,27.99535183]
[1765898527943,15.94618283,128.23,128.19,0.69]
[1765898528874,8.14755266,128.26,128.2,8.83755266]
[1765898529738,8.14755266,128.23,128.18,27.30535183]
[1765898529927,7.7988384,128.23,128.18,8.49152909]
[1765898530126,7.7988384,128.23,128.16,7.80237728]
[1765898530127,8.83755266,128.2,128.16,7.80237728]
[1765898530363,8.83755266,128.2,128.16,8.49237728]
[1765898530540,35.83505613,128.23,128.16,8.49237728]
[1765898530541,0.69,128.22,128.17,7.80211094]
[1765898530747,8.14755266,128.2,128.17,7.80211094]
[1765898530953,8.14755266,128.2,128.16,8.49271411]
[1765898531153,8.83755266,128.19,128.14,0.69]
[1765898531477,8.14755266,128.16,128.13,7.80445802]
[1765898531771,8.14755266,128.16,128.12,8.00495098]
[1765898531947,15.95035348,128.16,128.12,8.00495098]
[1765898532152,15.95035348,128.16,128.12,8.69495098]
[1765898532491,7.80238838,128.17,128.12,8.00495098]
[1765898532637,16.63994104,128.17,128.12,8.69495098]
[1765898532839,20.19120748,128.2,128.13,0.69]
[1765898533095,8.83755266,128.18,128.13,0.69]
[1765898533245,8.83755266,128.17,128.12,28.20790758]
[1765898533444,35.84357845,128.19,128.12,27.51790758]
[1765898533642,16.34033927,128.2,128.14,0.69]
[1765898533872,7.79917656,128.22,128.18,7.80152909]
[1765898534170,16.68755266,128.23,128.19,0.69]
[1765898534370,8.14755266,128.22,128.18,8.49152909]
[1765898534736,8.83755266,128.22,128.18,7.80152909]
[1765898534934,8.83755266,128.22,128.18,0.69]
[1765898535171,8.83755266,128.22,128.17,8.49189888]
[1765898535636,8.83755266,128.2,128.16,7.80264678]
[1765898535836,8.14755266,128.2,128.16,8.49264678]
[1765898536034,15.94805845,128.2,128.16,7.80264678]
[1765898536274,0.69,128.16,128.12,0.2]
[1765898536445,8.14755266,128.14,128.12,0.2]
[1765898537347,13.25947706,128.14,128.12,0.2]
[1765898537863,21.06395534,128.14,128.12,0.2]
[1765898538063,8.49447828,128.14,128.12,0.2]
[1765898538268,13.25947706,128.13,128.12,0.2]
[1765898539151,13.94947706,128.13,128.12,0.2]
[1765898540058,21.06405054,128.13,128.12,0.2]
[1765898540357,21.75405054,128.13,128.12,0.2]
[1765898540540,0.69,128.12,128.09,0.2]
[1765898540743,13.25947706,128.1,128.09,0.2]
[1765898541753,21.79947706,128.11,128.09,0.2]
[1765898542342,13.25947706,128.1,128.09,0.2]
[1765898542960,13.94947706,128.1,128.09,0.2]
[1765898543360,22.75942198,128.1,128.09,0.2]
[1765898543565,22.69942198,128.08,128.07,0.2]
[1765898543768,22.69942198,128.08,128.01,0.2]
[1765898543769,8.80994492,128.05,128.01,0.2]
[1765898543970,13.58947706,128.02,128.01,0.2]
[1765898544279,29.88070146,128.02,128.01,0.2]
[1765898544459,21.07075654,128.02,128.01,0.2]
[1765898544658,30.21070146,128.02,128.01,0.2]
[1765898544965,21.07075654,128.02,128.01,0.2]
[1765898546572,13.25947706,128.02,128.01,0.2]
[1765898546758,21.0703315,128.03,128.01,0.2]
[1765898547777,13.25947706,128.02,128.01,0.2]
[1765898547951,21.07075654,128.02,128.01,0.2]
[1765898548153,13.25947706,128.02,128.01,0.2]
[1765898548354,21.070355,128.03,128.01,0.2]
[1765898548554,13.25947706,128.02,128.01,0.2]
[1765898548864,22.39942198,128.02,128.01,0.1]
[1765898549366,22.39942198,128.02,127.94,0.69]
[1765898549367,0.23,128.01,127.94,0.69]
[1765898549681,13.25947706,127.97,127.93,0.69]
[1765898549854,8.54,127.97,127.94,0.69]
[1765898550055,13.25947706,127.96,127.92,8.50732096]
[1765898550248,13.25947706,127.96,127.93,0.69]
[1765898550464,13.25947706,127.95,127.93,0.69]
[1765898550684,13.25947706,127.95,127.92,8.50726175]
[1765898550888,16.35438353,127.97,127.93,0.69]
[1765898551046,13.25947706,127.96,127.93,0.69]
[1765898551253,13.25947706,127.96,127.93,8.50673297]
[1765898551475,13.25947706,127.96,127.93,0.69]
[1765898551794,13.25947706,127.95,127.92,0.69]
[1765898552011,13.25947706,127.95,127.92,8.50730642]
[1765898552295,13.25947706,127.95,127.92,0.69]
[1765898552795,13.25947706,127.94,127.91,0.69]
[1765898552978,13.25947706,127.92,127.89,0.89]
[1765898553156,8.56,127.94,127.89,0.2]
[1765898553157,21.81947706,127.91,127.89,0.2]
[1765898553548,13.25947706,127.9,127.89,0.2]
[1765898553783,13.48947706,127.9,127.89,0.2]
[1765898554075,21.07808534,127.9,127.89,0.2]
[1765898554276,7.81860828,127.9,127.89,0.2]
[1765898554479,13.25947706,127.9,127.89,0.2]
[1765898554654,8.56,127.91,127.89,0.86]
[1765898554979,21.81947706,127.91,127.89,0.86]
[1765898555279,8.56,127.91,127.89,0.86]
[1765898555793,21.81947706,127.94,127.9,0.66]
[1765898555978,21.0764307,127.93,127.9,0.66]
[1765898556284,13.25947706,127.93,127.9,0.66]
[1765898556454,13.25947706,127.93,127.89,0.86]
[1765898556656,13.25947706,127.93,127.9,0.66]
[1765898557166,21.81947706,127.93,127.89,0.2]
[1765898557367,21.81947706,127.93,127.89,0.86]
[1765898557567,13.25947706,127.9,127.89,0.2]
[1765898557788,21.81947706,127.9,127.89,0.2]
[1765898558573,8.56,127.9,127.89,0.2]
[1765898558788,7.81763043,127.92,127.9,0.66]
[1765898558789,8.56,127.92,127.9,0.66]
[1765898559375,8.56,127.94,127.9,0.66]
[1765898559561,21.81947706,127.94,127.9,0.66]
[1765898559988,8.56,127.94,127.92,0.66]
[1765898560494,29.6357194,127.94,127.9,7.81849359]
[1765898560669,8.56,127.94,127.91,0.66]
[1765898561064,29.63463052,127.96,127.91,0.66]
[1765898561266,13.25947706,127.95,127.91,0.66]
[1765898562196,13.25947706,127.94,127.91,0.66]
[1765898562378,8.56,127.93,127.91,0.66]
[1765898563492,21.07467844,127.96,127.92,0.66]
[1765898563664,8.56,127.95,127.92,0.66]
[1765898563871,21.07405799,127.97,127.92,0.66]
[1765898564201,8.56,128.0,127.95,0.66]
[1765898564494,13.25947706,127.99,127.95,0.66]
[1765898564997,13.25947706,127.98,127.95,0.66]
[1765898565294,8.56,127.97,127.95,0.66]
[1765898566096,13.25947706,128.02,127.97,0.66]
[1765898566398,8.80994492,128.03,127.97,0.66]
[1765898566399,21.81947706,128.01,127.97,0.66]
[1765898566601,8.56,128.01,127.97,0.66]
[1765898567593,8.56,128.01,127.96,8.47494216]
[1765898567895,21.81947706,128.01,127.97,0.66]
[1765898568197,29.63146808,128.01,127.97,8.4737819]
[1765898568573,13.25947706,128.0,127.97,8.4737819]
[1765898568769,29.63146808,128.01,127.97,8.4737819]
[1765898570372,13.25947706,128.0,127.97,8.4737819]
[1765898570892,13.25947706,128.02,127.98,0.66]
[1765898571097,13.25947706,128.03,127.98,0.66]
[1765898571394,8.56,128.03,127.99,0.66]
[1765898572284,21.81947706,128.03,127.99,0.66]
[1765898572597,29.6304956,128.03,127.99,8.47296493]
[1765898572782,13.25947706,128.02,127.99,0.66]
[1765898572978,13.25947706,128.02,127.99,8.4729499]
[1765898573474,13.25947706,128.02,127.99,7.8129499]
[1765898573696,13.25947706,128.02,127.99,8.4729499]
[1765898573998,8.56,128.03,128.0,0.66]
[1765898574767,19.75277366,128.06,127.99,27.34572589]
[1765898574768,4.07557047,128.08,128.02,0.66]
[1765898575002,13.35947706,128.16,128.01,21.07136675]
[1765898575003,8.56,128.1,128.05,13.25947706]
[1765898575180,8.56,128.1,128.04,13.0470912]
[1765898575181,21.06405054,128.13,128.08,0.66]
[1765898575389,8.56,128.12,128.08,0.66]
[1765898575701,21.81947706,128.12,128.08,0.66]
[1765898576474,13.25947706,128.11,128.07,0.66]
[1765898576672,21.06587658,128.11,128.07,0.66]
[1765898576896,13.25947706,128.1,128.06,0.66]
[1765898577202,27.32087926,128.11,128.07,0.66]
[1765898577390,27.32087926,128.11,128.04,21.6070912]
[1765898577590,13.25947706,128.1,128.05,0.66]
[1765898578493,13.25947706,128.1,128.06,8.4688205]
[1765898578880,21.06593534,128.1,128.06,8.4688205]
[1765898579082,8.56,128.09,128.06,8.4688205]
[1765898579286,8.56,128.09,128.07,0.66]
[1765898579912,8.56,128.11,128.07,0.66]
[1765898580087,8.56,128.11,128.08,0.66]
[1765898580487,21.0636592,128.14,128.09,0.66]
[1765898580815,13.25947706,128.12,128.08,0.66]
[1765898581309,7.80579189,128.11,128.08,0.66]
[1765898581607,13.25947706,128.1,128.05,0.66]
[1765898581810,21.81947706,128.1,128.05,0.66]
[1765898582006,21.81947706,128.1,128.06,0.66]
[1765898582007,13.25947706,128.09,128.06,0.66]
[1765898582212,13.25947706,128.07,128.0,0.66]
[1765898582376,13.25947706,128.04,128.0,0.66]
[1765898582710,13.25947706,128.05,128.0,0.66]
[1765898582901,13.25947706,128.05,128.01,0.66]
[1765898583410,21.06920664,128.05,128.01,7.81167457]
[1765898583593,21.06920664,128.05,128.02,0.66]
[1765898584389,13.25947706,128.04,128.02,0.66]
[1765898584688,13.25947706,128.05,128.02,8.47111572]
[1765898584881,13.25947706,128.04,128.0,0.7]
[1765898585109,13.25947706,128.04,128.0,8.51202396]
[1765898585300,13.25947706,128.01,127.97,0.7]
[1765898585501,13.25947706,128.01,127.97,13.7470912]
[1765898585684,13.25947706,128.02,127.99,0.7]
[1765898585887,8.56,128.05,128.0,0.7]
[1765898586106,21.81947706,128.05,128.0,0.7]
[1765898586509,13.25947706,128.03,128.0,0.7]
[1765898586687,8.56,128.05,127.99,0.7]
[1765898586688,13.25947706,128.04,127.99,0.7]
[1765898586887,8.56,128.05,127.99,0.7]
[1765898587097,13.25947706,128.04,127.99,0.7]
[1765898587303,13.25947706,128.04,128.0,8.51247743]
[1765898587505,21.81947706,128.05,128.01,0.7]
[1765898588010,8.56,128.05,128.01,0.7]
[1765898588221,110.30835183,128.07,128.02,0.7]
[1765898588222,8.56,128.06,128.02,0.7]
[1765898588596,29.62842679,128.06,128.02,0.7]
[1765898588821,13.25947706,128.05,128.02,0.7]
[1765898589035,13.25947706,128.05,128.0,32.5783412]
[1765898589036,13.25947706,128.04,128.0,13.0470912]
[1765898589193,13.25947706,128.02,127.99,8.51278597]
[1765898589396,21.81947706,128.03,128.0,0.7]
[1765898589598,21.81947706,128.03,128.0,8.5123651]
[1765898589903,21.81947706,128.04,128.01,0.7]
[1765898590091,21.81947706,128.04,128.01,8.51176797]
[1765898590297,21.81947706,128.04,128.0,7.81222422]
[1765898590525,21.81947706,128.04,128.02,0.7]
[1765898590839,21.83629191,128.06,128.03,0.7]
[1765898591031,13.27629191,128.05,128.02,7.81118343]
[1765898591235,13.27629191,128.05,128.01,7.81182288]
[1765898591459,13.27629191,128.05,128.02,0.7]
[1765898591738,21.83629191,128.06,128.03,0.7]
[1765898592105,8.56,128.06,128.02,8.51090682]
[1765898592304,21.83629191,128.06,128.03,0.7]
[1765898592558,0.23,128.12,128.03,0.7]
[1765898592829,21.08343038,128.09,128.06,0.7]
[1765898593198,13.27629191,128.09,128.06,0.7]
[1765898593398,21.08286297,128.1,128.06,0.7]
[1765898593647,28.07537485,128.11,128.06,0.7]
[1765898593648,8.56,128.11,128.06,0.7]
[1765898593802,8.56,128.11,128.07,0.7]
[1765898593996,13.27629191,128.13,128.08,13.27629191]
[1765898594200,21.07964735,128.15,128.1,0.7]
[1765898594401,29.63964735,128.15,128.1,0.7]
[1765898594632,13.27629191,128.14,128.1,0.7]
[1765898594851,29.63964735,128.15,128.11,0.7]
[1765898595019,8.56,128.15,128.11,0.7]
[1765898595214,16.36341816,128.15,128.11,0.7]
[1765898595418,8.56,128.15,128.11,0.7]
[1765898595658,8.56,128.15,128.11,13.27629191]
[1765898595954,8.56,128.15,128.12,0.7]
[1765898596313,21.17915665,128.16,128.12,0.7]
[1765898596927,21.17915665,128.16,128.13,0.7]
[1765898597125,0.1,128.16,128.13,0.7]
[1765898597327,0.1,128.16,128.15,0.7]
[1765898597637,7.79848709,128.23,128.16,0.7]
[1765898597818,7.79848709,128.23,128.18,0.7]
[1765898597819,24.5098719,128.23,128.18,0.7]
[1765898598214,16.71138481,128.23,128.19,0.7]
[1765898598533,8.56,128.23,128.18,0.7]
[1765898598832,8.15138481,128.21,128.17,0.7]
[1765898599032,16.69138481,128.2,128.16,0.7]
[1765898599239,8.15138481,128.19,128.16,0.7]
[1765898599426,7.79888109,128.23,128.19,0.7]
[1765898599630,15.9502659,128.23,128.19,0.7]
[1765898599932,15.9502659,128.23,128.19,7.80088115]
[1765898600143,15.9502659,128.23,128.19,0.7]
[1765898600330,7.79888109,128.23,128.19,0.7]
[1765898600535,8.48138481,128.2,128.15,0.7]
[1765898600728,0.33,128.2,128.15,0.7]
[1765898601046,8.15138481,128.18,128.15,0.7]
[1765898601861,8.15138481,128.18,128.12,49.25061688]
[1765898601862,8.15138481,128.17,128.13,8.50441325]
[1765898602348,8.15138481,128.16,128.13,0.7]
[1765898602524,16.69138481,128.16,128.11,20.85264658]
[1765898602730,8.15138481,128.15,128.12,8.50508149]
[1765898603129,24.49440532,128.16,128.13,0.7]
[1765898603332,24.49440532,128.16,128.12,8.50508149]
[1765898603522,24.49440532,128.16,128.13,0.7]
[1765898604343,8.15138481,128.18,128.14,0.7]
[1765898604517,8.54,128.17,128.14,0.7]
[1765898604954,24.49193471,128.2,128.15,0.7]
[1765898605340,15.95133299,128.21,128.16,0.7]
[1765898605516,16.69138481,128.2,128.16,0.7]
[1765898605879,8.54,128.2,128.16,0.7]
[1765898606033,8.15138481,128.19,128.16,0.7]
[1765898606423,8.15138481,128.18,128.13,13.7470912]
[1765898606623,8.54,128.17,128.14,0.7]
[1765898606942,8.54,128.17,128.14,8.50359647]
[1765898607342,8.54,128.17,128.16,0.7]
[1765898607637,19.50001858,128.21,128.17,0.7]
[1765898607638,8.54,128.2,128.17,0.7]
[1765898607957,8.15138481,128.19,128.16,0.7]
[1765898608153,0.43,128.25,128.18,0.7]
[1765898608359,8.15138481,128.23,128.19,0.7]
[1765898608558,15.94947932,128.24,128.2,0.7]
[1765898609378,8.48138481,128.22,128.18,7.80127707]
[1765898609522,0.1,128.25,128.21,8.15138481]
[1765898609750,0.1,128.25,128.23,0.7]
[1765898609976,8.25138481,128.25,128.21,0.7]
[1765898610273,8.25138481,128.25,128.22,0.7]
[1765898610274,0.1,128.25,128.22,0.7]
[1765898610776,0.1,128.25,128.23,0.7]
[1765898611157,0.1,128.25,128.21,7.79944116]
[1765898611366,0.1,128.25,128.22,0.7]
[1765898611676,8.25138481,128.25,128.21,0.7]
[1765898611877,8.25138481,128.25,128.19,8.15138481]
[1765898611878,8.15138481,128.23,128.19,8.50064584]
[1765898612048,8.15138481,128.22,128.19,8.50064584]
[1765898612450,15.95048011,128.22,128.18,21.54834384]
[1765898612881,15.95048011,128.22,128.18,20.84834384]
[1765898613084,15.95048011,128.22,128.18,8.50125264]
[1765898613257,8.15138481,128.21,128.18,8.50125264]
[1765898613580,8.15138481,128.21,128.18,7.80125264]
[1765898613757,8.15138481,128.21,128.17,0.67]
[1765898613954,8.54,128.23,128.19,0.69]
[1765898613955,16.33862663,128.23,128.19,0.69]
[1765898614263,8.64,128.25,128.21,0.69]
[1765898614582,8.64,128.25,128.22,8.4890953]
[1765898614983,16.4373923,128.25,128.22,0.69]
[1765898615370,24.58877711,128.25,128.22,0.69]
[1765898615883,16.4373923,128.25,128.22,0.69]
[1765898616384,16.4373923,128.25,128.22,8.15138481]
[1765898616385,0.1,128.25,128.22,8.15138481]
[1765898616557,0.1,128.25,128.24,8.48787897]
[1765898617156,0.1,128.25,128.22,0.69]
[1765898617361,0.1,128.25,128.24,0.69]
[1765898618489,0.1,128.25,128.24,8.48787897]
[1765898619462,0.1,128.25,128.24,16.63926378]
[1765898619665,0.1,128.27,128.26,13.7370912]
[1765898619865,8.54,128.32,128.27,0.69]
[1765898620069,28.81729468,128.36,128.3,0.69]
[1765898620070,8.15138481,128.35,128.3,0.69]
[1765898620299,8.15138481,128.35,128.31,0.69]
[1765898620486,15.94294423,128.35,128.31,0.69]
[1765898620689,7.79155942,128.35,128.27,21.88847601]
[1765898620919,0.53,128.34,128.29,7.7947074]
[1765898621070,8.15138481,128.31,128.29,7.7947074]
[1765898621400,16.69138481,128.33,128.29,0.69]
[1765898621581,8.54,128.33,128.29,0.69]
[1765898621781,8.15138481,128.32,128.28,0.69]
[1765898622085,8.15138481,128.31,128.27,21.53272976]
[1765898622397,8.15138481,128.32,128.28,8.48521475]
[1765898622699,15.94453044,128.32,128.28,8.48521475]
[1765898622991,16.69138481,128.33,128.29,0.69]
[1765898623369,8.54,128.33,128.29,0.69]
[1765898623595,24.48384087,128.33,128.29,0.69]
[1765898623794,8.15138481,128.32,128.29,0.69]
[1765898624100,8.15138481,128.33,128.29,0.69]
[1765898624273,24.48336953,128.34,128.29,0.69]
[1765898624473,8.15138481,128.33,128.29,0.69]
[1765898624723,7.79241039,128.33,128.29,8.48439553]
[1765898624924,16.69138481,128.34,128.3,0.69]
[1765898625114,15.94324883,128.34,128.3,0.69]
[1765898625321,24.48324883,128.34,128.3,0.69]
[1765898625824,24.48324883,128.34,128.29,8.48439553]
[1765898625825,8.15138481,128.33,128.29,8.48439553]
[1765898626026,8.15138481,128.33,128.3,0.69]
[1765898626823,8.15138481,128.33,128.3,8.48409532]
[1765898627526,8.15138481,128.32,128.29,8.48468825]
[1765898627726,16.33206817,128.34,128.31,0.69]
[1765898627905,8.15138481,128.33,128.29,8.48456617]
[1765898628230,0.53,128.29,128.23,8.48802174]
[1765898628531,0.53,128.29,128.23,0.69]
[1765898628532,8.15138481,128.26,128.23,0.69]
[1765898628732,8.15138481,128.27,128.22,27.29680408]
[1765898628897,8.80994492,128.31,128.23,0.69]
[1765898628898,16.69138481,128.28,128.23,0.69]
[1765898629827,8.54,128.28,128.25,0.69]
[1765898629995,8.15138481,128.3,128.25,0.69]
[1765898630299,8.54,128.3,128.27,0.69]
[1765898630499,15.94407667,128.33,128.28,0.69]
[1765898630702,15.9448879,128.32,128.28,0.69]
[1765898630932,15.9448879,128.32,128.27,7.79546029]
[1765898630933,8.15138481,128.31,128.27,7.79582601]
[1765898631124,9.07,128.3,128.25,8.48692883]
[1765898631310,8.15138481,128.29,128.25,8.48692883]
[1765898631508,8.15138481,128.29,128.25,0.69]
[1765898631706,8.15138481,128.28,128.25,0.69]
[1765898631910,8.15138481,128.27,128.23,8.48839096]
[1765898632227,16.69138481,128.27,128.23,8.48839096]
[1765898632437,16.69138481,128.27,128.22,7.79898219]
[1765898632438,8.15138481,128.26,128.22,7.79898219]
[1765898632619,8.15138481,128.26,128.22,8.48898219]
[1765898632932,8.15138481,128.23,128.2,7.80003948]
[1765898633125,16.69138481,128.24,128.2,8.49003948]
[1765898633325,8.15138481,128.23,128.19,7.80072598]
[1765898633630,8.15138481,128.2,128.16,0.69]
[1765898634101,16.69138481,128.21,128.17,0.69]
[1765898634302,8.54,128.21,128.17,0.69]
[1765898634503,8.15138481,128.21,128.17,0.69]
[1765898634726,16.69138481,128.21,128.17,0.69]
[1765898635032,16.69138481,128.21,128.16,7.80269021]
[1765898635033,8.15138481,128.2,128.16,7.80269021]
[1765898635237,8.15138481,128.2,128.16,8.49269021]
[1765898635534,8.15138481,128.2,128.17,0.69]
[1765898635719,8.15138481,128.19,128.15,0.69]
[1765898635923,8.15138481,128.19,128.15,8.49288881]
[1765898636326,0.53,128.15,128.11,13.0470912]
[1765898636513,8.15138481,128.13,128.1,0.69]
[1765898636725,8.54,128.15,128.11,0.69]
[1765898637031,24.49474437,128.15,128.11,7.80557872]
[1765898637234,8.15138481,128.13,128.1,0.69]
[1765898637432,16.69138481,128.15,128.1,0.69]
[1765898637638,16.69138481,128.15,128.11,7.80575952]
[1765898637841,24.49494396,128.15,128.1,7.80624358]
[1765898638017,8.15138481,128.14,128.11,0.69]
[1765898638218,16.34355915,128.15,128.1,0.69]
[1765898638219,8.15138481,128.13,128.1,0.69]
[1765898638428,8.15138481,128.12,128.09,0.69]
[1765898638624,8.15138481,128.12,128.08,16.34751297]
[1765898638625,8.15138481,128.11,128.08,8.49751297]
[1765898638814,8.15138481,128.12,128.08,8.49751297]
[1765898639236,8.15138481,128.11,128.08,8.49751297]
[1765898640219,8.15138481,128.11,128.08,0.69]
[1765898640422,8.15138481,128.11,128.07,0.69]
[1765898640623,8.15138481,128.1,128.07,0.69]
[1765898640932,16.34520669,128.12,128.07,8.49803188]
[1765898641124,8.15138481,128.1,128.07,8.49803188]
[1765898641748,16.34520669,128.12,128.05,19.52284136]
[1765898641910,16.34520669,128.12,128.07,7.80794733]
[1765898642119,8.15138481,128.1,128.07,8.49794733]
[1765898642322,8.15138481,128.11,128.08,0.69]
[1765898642660,8.15138481,128.15,128.09,0.69]
[1765898642959,8.15138481,128.11,128.07,21.54503853]
[1765898643538,8.15138481,128.11,128.07,8.49794733]
[1765898643836,8.15138481,128.11,128.08,0.7]
[1765898644037,8.80994492,128.15,128.08,0.7]
[1765898644038,103.49999999,128.23,128.1,0.7]
[1765898644336,8.15138481,128.17,128.11,0.7]
[1765898644641,8.54,128.18,128.14,0.7]
[1765898644823,8.15138481,128.19,128.14,0.7]